bitfinex-derivatives/quotes_ETHF0:USTF0_20250817
["timestamp","ask_amount","ask_price","bid_price","bid_amount"]
[1755457362425,3.2078,4472.4,4471.8,3.2078]
[1755457362631,3.7648,4471.9,4470.9,0.44707]
[1755457362828,0.9841,4471.6,4470.5,3.2078]
[1755457363133,0.3218,4471.8,4471.0,1.3526]
[1755457363325,0.557,4471.5,4470.7,0.3326]
[1755457363529,3.2078,4471.4,4471.0,1.02]
[1755457363724,0.557,4471.3,4470.5,3.2078]
[1755457363930,0.9841,4471.2,4470.7,0.3326]
[1755457364128,0.9841,4471.2,4470.6,0.3326]
[1755457364332,1.0064,4471.2,4469.8,3.2078]
[1755457364530,0.7489,4470.7,4469.9,0.44717]
[1755457364731,0.4271,4470.5,4469.8,3.98758]
[1755457365127,0.4271,4470.5,4469.8,0.3326]
[1755457365328,0.3218,4470.1,4469.8,0.3326]
[1755457365534,0.9841,4470.0,4469.8,0.3326]
[1755457365835,1.55461231,4474.2,4470.6,0.3326]
[1755457365836,3.2078,4470.8,4470.6,0.3326]
[1755457366129,1.3282,4471.2,4470.1,0.7859]
[1755457366332,0.9841,4470.2,4469.6,0.3326]
[1755457366532,0.9841,4470.2,4469.3,1.02]
[1755457366724,3.5296,4470.3,4469.3,0.4533]
[1755457366936,3.5296,4470.3,4468.5,32.181]
[1755457366937,3.2078,4469.6,4468.5,1.11828]
[1755457367234,0.4271,4469.4,4468.6,1.3526]
[1755457367436,0.9841,4469.0,4468.6,0.3326]
[1755457367734,1.0362,4468.9,4468.1,0.3648]
[1755457367935,1.0362,4468.9,4468.1,1.427]
[1755457368231,0.916,4468.8,4467.8,3.2078]
[1755457368436,0.5829,4468.6,4467.8,3.2078]
[1755457368636,0.4533,4468.5,4467.8,3.2078]
[1755457368829,3.2078,4468.9,4467.9,1.427]
[1755457369026,3.2078,4468.9,4468.0,0.3648]
[1755457369230,0.5829,4468.8,4468.0,0.81216]
[1755457369626,0.5829,4468.8,4467.8,3.2078]
[1755457369831,0.5829,4468.6,4467.8,3.2078]
[1755457370031,3.2078,4468.4,4467.8,3.2078]
[1755457370232,3.2078,4468.4,4467.2,3.5726]
[1755457370233,1.0362,4468.2,4467.2,3.5726]
[1755457370534,1.0362,4468.2,4467.5,0.3648]
[1755457370729,0.3331,4468.3,4467.2,3.2078]
[1755457370928,1.3693,4467.8,4466.9,0.3648]
[1755457371135,3.2078,4467.9,4466.5,0.4835]
[1755457371136,1.3916,4467.6,4466.5,0.4835]
[1755457371437,3.2301,4467.2,4465.8,3.2078]
[1755457371629,0.5829,4466.2,4465.6,0.8124]
[1755457371834,0.5829,4466.2,4466.1,0.46555792]
[1755457372233,1.0362,4466.2,4466.1,0.46555792]
[1755457372435,3.2078,4466.3,4466.2,0.8483]
[1755457372639,3.2078,4466.8,4466.2,1.427]
[1755457372840,3.2078,4466.8,4466.2,1.87453]
[1755457373036,1.0362,4466.7,4466.1,0.10075792]
[1755457373354,1.3693,4466.2,4466.1,0.10075792]
[1755457373638,1.0362,4466.2,4466.1,0.10075792]
[1755457373836,3.2078,4466.3,4466.1,1.16295792]
[1755457374035,1.0362,4466.2,4466.1,0.10075792]
[1755457374237,1.3693,4466.2,4466.1,0.10075792]
[1755457374662,1.3091,4466.1,4464.8,0.44768]
[1755457374862,1.0362,4465.4,4464.7,0.44769]
[1755457375053,1.0362,4465.4,4464.6,0.3648]
[1755457375253,1.0362,4465.4,4464.6,0.8125]
[1755457375457,3.2078,4465.5,4464.6,0.3648]
[1755457375663,1.0362,4465.3,4464.6,0.81249]
[1755457375955,1.0362,4465.2,4464.6,0.3648]
[1755457376160,0.0223,4465.4,4464.6,0.3648]
[1755457376353,1.0362,4464.9,4464.3,0.44773]
[1755457376667,0.1,4467.2,4465.4,0.44762]
[1755457376668,3.2078,4465.5,4465.4,0.44762]
[1755457376959,3.2078,4465.5,4465.4,1.87462]
[1755457377162,4.244,4465.5,4464.7,1.0622]
[1755457377460,3.6611,4465.5,4464.8,0.3648]
[1755457377658,3.2078,4465.5,4465.4,1.427]
[1755457377860,3.2078,4465.5,4464.4,4.3494]
[1755457378067,3.2078,4466.3,4465.4,1.0622]
[1755457378265,3.2078,4466.3,4465.9,0.5787]
[1755457378566,4.244,4466.3,4466.2,0.3648]
[1755457378754,3.2078,4467.1,4466.3,0.3648]
[1755457378958,3.2078,4466.6,4465.5,1.427]
[1755457379153,3.2078,4466.1,4465.5,1.427]
[1755457379362,1.0362,4466.0,4465.5,1.427]
[1755457379558,0.5829,4466.4,4466.1,0.5787]
[1755457379764,4.244,4466.7,4466.3,1.0622]
[1755457379959,1.0362,4466.6,4465.8,0.5787]
[1755457380168,1.0362,4466.6,4466.0,0.3648]
[1755457380462,3.2078,4466.7,4465.8,3.2078]
[1755457380767,1.1362,4467.2,4466.6,1.11876]
[1755457380768,0.1,4467.2,4466.6,1.11876]
[1755457381067,0.1,4467.2,4467.1,1.87445]
[1755457381457,0.1,4467.2,4467.1,1.427]
[1755457382463,0.1,4467.2,4467.1,0.3648]
[1755457382768,0.4331,4467.2,4466.6,1.0622]
[1755457382971,3.2078,4467.0,4466.0,1.29586]
[1755457383263,0.4331,4467.2,4465.0,0.81246]
[1755457383264,3.2078,4466.4,4465.0,0.81246]
[1755457383465,1.3693,4466.3,4464.8,0.44768]
[1755457383661,0.4533,4466.0,4465.1,1.0622]
[1755457383868,3.5409,4465.9,4465.1,1.0622]
[1755457384065,0.5829,4465.8,4465.1,1.0622]
[1755457385064,0.5829,4466.3,4465.1,0.44765]
[1755457385270,0.5829,4466.3,4465.1,0.8483]
[1755457385471,0.5829,4466.3,4465.3,1.427]
[1755457385766,0.7864,4466.2,4465.2,0.3648]
[1755457385972,3.2078,4465.8,4465.2,0.3648]
[1755457386162,0.4533,4465.7,4465.2,0.3648]
[1755457386363,0.3331,4465.5,4464.6,0.3648]
[1755457386568,1.3693,4465.2,4464.5,3.2078]
[1755457386764,0.5829,4465.2,4464.5,3.2078]
[1755457387074,0.4533,4465.1,4464.5,3.5726]
[1755457387268,0.0223,4465.2,4463.9,3.2078]
[1755457387472,3.2078,4465.3,4463.9,3.2078]
[1755457387473,1.0362,4464.7,4463.9,3.2078]
[1755457387866,0.3554,4464.6,4462.1,1.11988]
[1755457388066,0.0223,4464.4,4462.8,3.2078]
[1755457388268,3.2078,4463.4,4462.5,0.4835]
[1755457388472,3.7907,4463.4,4462.5,0.4835]
[1755457388667,3.2078,4462.9,4461.7,4.6348]
[1755457388867,3.2078,4462.4,4461.7,4.0561]
[1755457389069,1.0362,4462.3,4461.7,3.5726]
[1755457389278,1.0362,4462.3,4461.7,3.2078]
[1755457389465,1.0362,4462.3,4461.3,0.5787]
[1755457389977,1.3693,4462.2,4461.4,0.3648]
[1755457390478,1.3693,4462.2,4461.3,0.5787]
[1755457390773,0.3331,4462.1,4461.2,1.427]
[1755457391077,1.3693,4462.3,4461.3,1.427]
[1755457391372,1.0362,4462.0,4460.7,1.39159]
[1755457391576,3.2078,4461.9,4460.7,0.9435]
[1755457391779,3.2078,4461.9,4461.0,0.44806]
[1755457391968,3.2078,4461.9,4461.1,0.8483]
[1755457392173,3.2078,4462.4,4461.5,1.427]
[1755457392373,3.2078,4461.9,4460.6,3.2078]
[1755457392569,3.2078,4460.8,4459.6,3.7865]
[1755457392774,3.2078,4460.8,4459.7,1.0622]
[1755457392977,1.3693,4460.7,4459.8,0.3648]
[1755457393186,0.5829,4460.6,4459.3,0.5787]
[1755457393372,1.3693,4460.2,4459.2,0.3648]
[1755457393574,1.3693,4460.2,4459.5,3.2078]
[1755457393773,3.6611,4460.8,4459.7,1.87519]
[1755457393974,3.6611,4460.8,4460.0,0.44816]
[1755457394172,3.2078,4460.8,4460.6,0.5787]
[1755457394374,3.2078,4460.8,4460.7,1.427]
[1755457394677,1.0362,4460.6,4459.2,0.3648]
[1755457394873,1.3917,4459.6,4459.1,0.10091609]
[1755457395071,0.3555,4458.9,4457.8,3.2078]
[1755457395276,3.2078,4458.0,4457.4,0.9435]
[1755457395472,0.3331,4457.7,4456.7,3.2078]
[1755457395673,0.5829,4458.1,4457.1,0.44845]
[1755457395875,0.3555,4458.0,4457.0,0.8483]
[1755457396079,3.2078,4457.7,4456.6,3.2078]
[1755457396282,1.0362,4457.6,4456.6,3.2078]
[1755457396483,3.2078,4458.3,4457.1,0.0224]
[1755457396678,3.2078,4458.3,4457.5,1.0622]
[1755457396977,3.2078,4459.5,4459.3,0.3648]
[1755457397178,0.5829,4460.0,4459.1,0.3648]
[1755457397482,0.7864,4459.9,4459.1,0.3648]
[1755457397780,0.1,4460.2,4460.0,1.3714]
[1755457397979,3.2078,4460.9,4460.1,1.3714]
[1755457398180,1.3208,4460.8,4459.5,1.0179]
[1755457398479,3.2078,4460.9,4460.0,0.7948]
[1755457398683,0.8007,4460.7,4458.9,3.2078]
[1755457398981,3.2078,4460.1,4458.8,3.2078]
[1755457399183,0.0224,4460.0,4459.1,0.10091609]
[1755457399380,3.7503,4459.2,4459.1,0.10091609]
[1755457399582,3.2078,4459.4,4459.2,1.46615]
[1755457399781,3.2078,4460.5,4459.6,0.0224]
[1755457399980,3.2078,4460.5,4460.4,1.3714]
[1755457400281,3.2078,4461.6,4460.5,1.3714]
[1755457400480,3.2078,4461.6,4460.7,0.0224]
[1755457400687,3.2078,4462.2,4461.5,0.3535]
[1755457400881,3.2078,4463.0,4462.0,1.3714]
[1755457401079,3.2078,4463.0,4462.0,0.4413]
[1755457401382,3.2078,4463.0,4462.1,1.3714]
[1755457401777,3.2078,4463.0,4462.1,1.3938]
[1755457402082,3.2078,4463.6,4462.8,0.4413]
[1755457402283,3.2078,4463.6,4462.9,0.5766]
[1755457402784,3.2078,4463.6,4462.1,1.0179]
[1755457402785,0.9795,4463.5,4462.1,1.0179]
[1755457402981,3.2078,4462.6,4461.6,3.2078]
[1755457403285,3.2078,4462.6,4461.8,0.4413]
[1755457403482,0.437,4462.5,4461.8,0.4413]
[1755457403981,0.437,4462.5,4461.7,0.3535]
[1755457404181,0.5425,4462.0,4461.0,3.6491]
[1755457404377,3.2078,4461.6,4461.0,3.2078]
[1755457404592,3.2078,4461.1,4460.4,3.2078]
[1755457404779,1.3208,4461.0,4459.8,3.2078]
[1755457404982,1.3432,4461.0,4459.9,0.4413]
[1755457405182,26.352,4462.9,4459.8,3.2078]
[1755457405183,3.2078,4460.6,4459.8,3.2078]
[1755457405680,3.2078,4461.3,4459.9,1.3714]
[1755457405886,3.2078,4460.6,4459.9,1.3714]
[1755457406088,0.9795,4461.0,4459.9,1.3714]
[1755457406380,3.2078,4460.7,4459.9,1.3714]
[1755457406584,3.5491,4460.7,4459.2,3.2078]
[1755457406779,0.5425,4460.6,4459.7,3.2078]
[1755457407079,3.2078,4460.7,4459.9,1.0179]
[1755457407280,4.0916,4460.7,4459.9,0.5766]
[1755457407482,4.0916,4460.7,4459.8,0.3535]
[1755457407483,4.114,4460.7,4459.8,0.3535]
[1755457407688,1.3208,4460.1,4459.3,1.0179]
[1755457407987,0.9795,4460.1,4459.3,1.0179]
[1755457408980,1.3208,4460.1,4459.3,0.4413]
[1755457409188,1.3208,4460.1,4459.2,3.2078]
[1755457410189,0.9795,4460.1,4459.3,0.5766]
[1755457410494,3.2078,4460.2,4459.7,0.4413]
[1755457410784,3.2078,4460.8,4459.8,1.37828]
[1755457410989,3.2078,4460.8,4459.8,0.9301]
[1755457412091,3.2078,4460.8,4459.8,1.37828]
[1755457412491,3.2078,4460.1,4459.2,1.3714]
[1755457412785,3.2078,4460.6,4459.4,0.5766]
[1755457413187,1.3208,4460.5,4459.4,0.5766]
[1755457413388,1.3208,4460.4,4459.3,0.7948]
[1755457413781,0.437,4460.4,4459.6,0.5766]
[1755457414083,3.2078,4460.6,4459.7,0.4413]
[1755457414290,3.7503,4460.6,4459.7,0.4413]
[1755457414594,1.3208,4459.7,4459.1,0.10091609]
[1755457416387,3.2078,4459.8,4459.2,0.9301]
[1755457416593,0.9795,4460.3,4459.3,1.3714]
[1755457416891,3.2078,4460.4,4459.6,1.3714]
[1755457417386,3.2078,4460.4,4459.7,0.4482]
[1755457417591,3.2078,4460.4,4459.8,1.3714]
[1755457418687,1.3208,4460.8,4459.8,1.3714]
[1755457418880,0.54780603,4460.7,4459.8,1.3714]
[1755457419084,1.3208,4460.8,4459.8,1.3714]
[1755457419280,0.54780661,4460.7,4459.8,1.3714]
[1755457419486,1.3208,4460.8,4459.8,1.81958]
[1755457419688,0.54794806,4460.7,4460.0,3.2078]
[1755457419898,3.2078,4460.9,4460.3,0.7948]
[1755457420197,0.9795,4461.4,4460.6,0.44811]
[1755457420387,0.0224,4462.2,4461.3,2.49148]
[1755457420388,0.5425,4462.2,4461.3,2.49148]
[1755457420689,3.2078,4462.3,4461.6,3.6558]
[1755457420890,3.2078,4462.3,4461.5,0.7948]
[1755457421091,0.54631133,4462.2,4461.7,0.44799]
[1755457421287,3.2078,4462.3,4462.0,1.3714]
[1755457421498,3.2078,4462.9,4462.2,1.3714]
[1755457421695,0.9795,4463.2,4462.2,1.3714]
[1755457421895,1.45461231,4464.4,4462.0,3.2078]
[1755457421896,3.2078,4463.1,4462.4,0.44792]
[1755457422192,3.2078,4463.1,4462.4,0.3535]
[1755457422391,3.2078,4463.6,4462.6,1.3714]
[1755457422699,3.2078,4463.6,4463.0,1.3714]
[1755457422991,0.437,4463.5,4462.6,0.4479]
[1755457423200,3.2078,4463.6,4462.7,0.44789]
[1755457423386,3.6448,4463.6,4462.9,0.4413]
[1755457423591,0.5425,4463.5,4462.8,0.9301]
[1755457423890,3.2078,4463.1,4462.3,0.5766]
[1755457424094,0.5425,4463.0,4462.2,0.3535]
[1755457424297,0.7783,4462.9,4461.9,3.2078]
[1755457424596,0.7783,4462.9,4461.8,0.5766]
[1755457425487,0.5425,4463.0,4462.1,0.7948]
[1755457426396,0.7783,4462.7,4461.5,0.44801]
[1755457426700,3.2078,4462.1,4461.3,3.2078]
[1755457427692,3.2078,4462.1,4461.1,1.3714]
[1755457427897,1.0026,4461.9,4460.7,3.2078]
[1755457428100,1.359,4461.5,4460.6,1.3505]
[1755457428297,1.359,4461.5,4460.6,0.3288]
[1755457428491,0.03901595,4463.7,4460.2,3.2078]
[1755457428492,4.2104,4461.0,4460.2,3.2078]
[1755457428897,0.9087,4461.4,4460.4,0.5631]
[1755457429098,0.9087,4461.4,4460.5,0.77691]
[1755457429301,0.5523,4461.4,4460.7,0.5631]
[1755457429997,3.6581,4461.6,4460.2,3.2078]
[1755457429998,3.2078,4461.6,4460.3,0.8919]
[1755457430199,3.2078,4461.6,4460.6,0.4481]
[1755457430394,3.6581,4461.6,4460.7,0.44809]
[1755457430600,3.6581,4461.6,4460.9,0.3288]
[1755457430995,3.2078,4461.1,4460.1,0.3288]
[1755457431201,0.5523,4461.0,4460.1,0.77695]
[1755457431704,0.5523,4461.0,4460.4,1.0217]
[1755457431902,4.0145,4461.1,4460.5,0.3288]
[1755457432505,4.5668,4461.1,4460.5,0.3288]
[1755457433801,4.5668,4461.1,4460.4,0.4586]
[1755457434402,0.3564,4460.5,4459.6,3.2078]
[1755457434804,1.0026,4460.4,4459.6,3.2078]
[1755457436610,1.359,4460.3,4459.4,0.8919]
[1755457436809,3.7601,4460.6,4459.7,0.44819]
[1755457437006,3.7601,4460.6,4459.8,0.3288]
[1755457437905,4.1165,4460.6,4459.8,0.3288]
[1755457438108,1.359,4460.0,4459.4,3.2078]
[1755457438607,1.359,4460.0,4459.4,3.65602]
[1755457438807,1.359,4460.0,4459.7,0.3288]
[1755457439007,1.359,4460.0,4459.4,3.2078]
[1755457439314,1.0026,4460.5,4459.6,1.3505]
[1755457439998,0.3564,4460.4,4459.6,1.3505]
[1755457440202,0.3564,4460.4,4459.6,1.79871]
[1755457440405,1.359,4461.0,4460.0,0.44816]
[1755457440609,1.359,4461.0,4460.1,0.5631]
[1755457441008,1.359,4461.0,4460.4,0.44812]
[1755457441201,1.359,4461.0,4460.3,0.5631]
[1755457441511,1.0026,4460.8,4459.6,0.3288]
[1755457441711,1.359,4460.5,4459.6,0.3288]
[1755457441900,3.2078,4460.1,4459.1,3.30871609]
[1755457442107,1.359,4460.0,4459.1,3.30871609]
[1755457442303,0.5523,4459.4,4459.1,0.10091609]
[1755457442615,3.0,4459.3,4459.1,0.10091609]
[1755457442911,1.359,4459.2,4457.8,3.2078]
[1755457443114,1.359,4458.4,4457.6,0.44841]
[1755457443311,1.359,4458.4,4457.5,1.02431]
[1755457443810,1.359,4458.4,4457.5,0.5759]
[1755457444009,1.0026,4458.4,4457.7,0.4586]
[1755457444214,0.3564,4458.3,4457.5,0.5759]
[1755457444513,0.3564,4457.8,4457.5,0.0128]
[1755457444714,0.9087,4457.6,4456.5,0.4586]
[1755457445011,1.359,4457.1,4456.3,3.2078]
[1755457445217,0.5523,4457.0,4456.3,3.2078]
[1755457445415,0.5523,4457.0,4456.1,0.8919]
[1755457445621,3.2078,4456.7,4456.1,0.8919]
[1755457446007,3.2078,4456.7,4455.7,3.2078]
[1755457446214,1.34546011,4456.6,4455.7,3.5366]
[1755457446815,3.2078,4456.7,4455.8,1.3505]
[1755457447016,3.2078,4456.7,4456.6,0.4586]
[1755457447323,3.2078,4456.7,4456.0,0.3288]
[1755457447526,3.2078,4457.3,4456.5,0.7874]
[1755457447817,3.2078,4457.3,4456.2,3.2078]
[1755457447818,3.2078,4457.8,4456.8,0.4586]
[1755457448022,3.2078,4456.9,4454.3,1.99412025]
[1755457448220,3.5642,4454.4,4453.1,0.5631]
[1755457448423,3.2078,4453.2,4453.1,1.3505]
[1755457448714,3.2078,4453.2,4453.1,0.5631]
[1755457448919,3.2078,4453.2,4452.6,0.5631]
[1755457449120,3.2078,4452.7,4452.6,1.3505]
[1755457449716,3.2078,4453.4,4452.7,1.3729]
[1755457449915,3.2078,4453.4,4452.8,30.421]
[1755457450121,3.2078,4453.4,4452.9,1.0441]
[1755457450325,3.2078,4453.8,4453.3,0.44884]
[1755457450522,3.2078,4454.5,4453.7,0.1523]
[1755457450821,3.2078,4454.5,4454.1,0.0224]
[1755457451121,3.2078,4455.5,4454.3,0.1523]
[1755457451317,3.2078,4455.5,4452.8,30.421]
[1755457451318,3.2078,4454.4,4453.5,0.5631]
[1755457451619,3.2078,4454.4,4454.2,1.174]
[1755457451824,3.2078,4454.4,4454.3,31.4207]
[1755457452122,3.2078,4454.4,4454.3,34.4401]
[1755457452320,3.2078,4455.2,4454.4,1.0441]
[1755457452618,0.30212784,4455.1,4454.5,30.385]
[1755457452814,2.9194,4455.2,4455.1,0.6109]
[1755457453019,3.2078,4456.3,4455.6,0.481]
[1755457453222,3.2078,4456.3,4455.2,0.4586]
[1755457453223,0.3564,4456.2,4455.2,0.4586]
[1755457453428,3.2078,4455.8,4455.2,0.4586]
[1755457453820,0.5523,4456.1,4455.3,30.363]
[1755457454023,3.2078,4457.1,4456.4,0.4586]
[1755457454420,3.2078,4457.1,4456.5,0.44852]
[1755457454626,3.2078,4457.1,4456.6,0.0224]
[1755457454821,3.2078,4457.9,4457.2,0.4586]
[1755457455030,3.2078,4457.9,4457.3,0.44844]
[1755457455331,3.2078,4457.9,4457.6,0.4484]
[1755457455526,3.2078,4457.9,4457.7,0.4586]
[1755457455730,3.2078,4457.9,4457.7,0.6007]
[1755457456029,3.2078,4457.9,4457.8,3.4586]
[1755457456426,3.2078,4457.9,4457.8,33.7776]
[1755457456629,0.3564,4458.2,4457.9,0.90698]
[1755457456826,0.3564,4458.2,4458.0,0.4586]
[1755457457140,3.2078,4458.6,4458.3,0.0224]
[1755457457337,3.2078,4459.4,4458.8,0.4586]
[1755457457642,3.2078,4459.4,4459.1,0.44826]
[1755457457930,3.2078,4459.4,4459.3,0.6433]
[1755457458126,3.2078,4459.4,4459.3,30.9343]
[1755457458430,3.2078,4459.4,4459.3,0.6433]
[1755457458628,3.2078,4459.4,4459.3,30.9293]
[1755457458824,3.2078,4459.9,4459.7,0.44819]
[1755457459024,3.2078,4459.9,4459.8,0.5197]
[1755457459220,3.2078,4459.9,4459.7,0.44819]
[1755457459221,0.1,4460.2,4460.0,0.2493]
[1755457459430,0.1,4460.2,4460.1,31.0096]
[1755457459735,0.1,4460.2,4460.1,0.7466]
[1755457459931,0.1,4460.2,4460.1,31.0086]
[1755457460123,3.2078,4461.0,4460.2,0.44814]
[1755457460325,3.2078,4461.0,4460.2,0.5197]
[1755457460933,3.2078,4461.0,4460.7,0.5197]
[1755457460934,0.3726,4460.9,4460.7,0.5197]
[1755457461132,3.2078,4461.0,4460.9,0.44807]
[1755457461328,3.83,4461.6,4460.8,0.96778]
[1755457461635,3.83,4461.6,4460.9,40.402]
[1755457461831,3.83,4461.6,4461.0,30.22]
[1755457462036,3.83,4461.6,4460.9,32.3]
[1755457462237,0.9948,4461.5,4461.1,30.214]
[1755457462434,1.5059,4461.0,4460.9,32.3]
[1755457462638,4.6913,4461.0,4460.9,60.9362]
[1755457463235,4.7137,4461.0,4460.9,30.7322]
[1755457463441,4.6913,4461.0,4460.9,30.7322]
[1755457463741,4.7137,4461.0,4460.9,30.7322]
[1755457464238,3.2078,4461.0,4460.9,60.9002]
[1755457464541,0.3726,4462.1,4461.0,0.5197]
[1755457464727,0.0224,4461.9,4460.9,34.5673]
[1755457464929,3.2078,4461.2,4460.9,30.7322]
[1755457465241,1.4835,4461.0,4460.9,30.7322]
[1755457465442,1.4835,4461.0,4460.9,60.8762]
[1755457465637,1.4835,4461.0,4460.9,30.7322]
[1755457466345,1.4835,4461.0,4460.9,60.8592]
[1755457467042,3.83,4461.3,4460.9,60.8592]
[1755457467334,0.9948,4461.1,4460.9,60.8592]
[1755457467544,3.5804,4461.8,4461.3,0.44803]
[1755457467832,0.9948,4461.6,4461.2,0.44804]
[1755457468039,1.4835,4461.6,4461.4,30.097]
[1755457468232,1.1109,4461.6,4460.9,30.7322]
[1755457468434,0.4887,4461.2,4461.0,30.085]
[1755457468633,1.5059,4461.0,4460.9,30.7322]
[1755457468830,1.4835,4461.0,4460.9,60.8132]
[1755457469340,1.4835,4461.0,4460.9,30.7322]
[1755457469535,1.4835,4461.0,4460.9,60.7982]
[1755457470331,1.4835,4461.0,4460.9,30.7322]
[1755457470537,1.4835,4461.0,4460.9,60.7762]
[1755457471036,1.4835,4461.0,4460.9,30.7322]
[1755457471240,1.74926012,4461.0,4460.9,60.7692]
[1755457471536,1.74926012,4461.0,4460.9,60.7652]
[1755457472447,1.74926012,4461.0,4460.9,60.7582]
[1755457472939,1.74926012,4461.0,4460.9,30.7322]
[1755457473141,1.74926012,4461.0,4460.9,60.7292]
[1755457473335,1.74926012,4461.0,4460.9,30.7322]
[1755457473536,0.0224,4460.9,4459.2,0.44824]
[1755457473734,0.4887,4459.5,4459.3,29.986]
[1755457473937,1.1109,4459.2,4458.9,0.3837]
[1755457474245,1.1109,4459.2,4459.1,30.08091609]
[1755457474438,1.4835,4459.2,4459.1,30.08091609]
[1755457474838,1.4835,4459.2,4459.1,30.07491609]
[1755457475035,1.1109,4459.2,4459.1,30.07491609]
[1755457475335,0.6222,4459.2,4459.1,30.06791609]
[1755457475742,0.6222,4459.5,4459.1,30.45161609]
[1755457476043,0.6222,4460.0,4459.4,1.5307]
[1755457476232,0.26574617,4459.9,4459.4,1.147]
[1755457476435,0.6222,4459.8,4459.5,0.9034]
[1755457476636,3.2078,4460.2,4459.4,0.6273]
[1755457476637,3.2078,4460.2,4459.4,0.0224]
[1755457476938,3.2078,4460.2,4460.0,1.5307]
[1755457477137,3.2078,4460.2,4460.1,30.8324]
[1755457477638,3.2078,4460.2,4460.1,31.93026]
[1755457477836,3.2078,4460.7,4460.1,31.4457]
[1755457478041,0.26596717,4460.6,4460.1,31.062]
[1755457478245,3.2078,4460.7,4460.2,0.44814]
[1755457478432,0.6222,4461.3,4460.5,1.5307]
[1755457478633,0.26612832,4461.2,4460.6,28.206]
[1755457478839,0.26612832,4461.1,4460.6,28.206]
[1755457479042,0.26612832,4461.0,4460.8,1.5307]
[1755457479248,3.2078,4461.3,4460.8,1.5307]
[1755457479539,0.26617168,4461.2,4461.0,0.5197]
[1755457479740,0.26617168,4461.1,4461.0,1.5307]
[1755457479944,3.2078,4461.3,4461.0,1.5307]
[1755457479945,0.26617168,4461.2,4461.0,1.5307]
[1755457480149,0.26617168,4461.1,4461.0,0.6273]
[1755457480341,0.26720429,4461.7,4461.1,0.44805]
[1755457480541,0.26720933,4461.6,4461.5,1.5307]
[1755457481749,0.26720933,4461.6,4461.5,31.3757]
[1755457482249,3.2078,4461.8,4461.5,30.7374]
[1755457482444,0.86872826,4461.7,4461.5,30.7374]
[1755457482645,0.24652826,4461.6,4461.5,31.3647]
[1755457482945,3.2078,4461.8,4461.6,0.448]
[1755457483247,0.24697224,4461.7,4461.6,1.9787]
[1755457483646,3.2078,4461.8,4461.7,1.5307]
[1755457484450,3.44241356,4461.8,4461.7,1.5307]
[1755457484654,0.4887,4462.8,4462.2,0.3837]
[1755457484846,0.23462981,4462.7,4462.4,1.5307]
[1755457485142,0.23462981,4462.6,4462.5,0.3837]
[1755457485352,0.23462981,4462.6,4462.5,31.3057]
[1755457485551,3.2078,4462.9,4462.6,1.9786]
[1755457485743,0.23475652,4462.8,4462.7,1.5307]
[1755457485944,3.2078,4462.9,4462.7,1.5307]
[1755457486144,3.2078,4462.9,4462.8,31.2927]
[1755457486344,3.44256476,4462.9,4462.8,31.2897]
[1755457487152,3.2078,4463.5,4462.9,0.44787]
[1755457487445,0.85696522,4463.4,4463.1,0.44785]
[1755457487645,0.23476522,4463.3,4463.2,0.3837]
[1755457487843,0.23476522,4463.3,4463.0,0.8881]
[1755457488042,0.23476522,4463.2,4463.1,0.8881]
[1755457488247,0.85246522,4463.2,4463.1,0.371]
[1755457488447,0.23476522,4463.2,4462.7,0.371]
[1755457488648,1.1325,4463.2,4463.1,29.716]
[1755457488851,1.72523305,4463.2,4463.1,29.716]
[1755457489452,0.23463305,4463.2,4463.1,31.251]
[1755457489753,0.23463305,4463.2,4463.1,1.535]
[1755457489951,3.2078,4463.5,4463.2,1.98284]
[1755457490156,0.23457217,4463.4,4463.3,1.535]
[1755457490451,0.23457217,4463.4,4463.3,31.222]
[1755457491249,3.2078,4463.5,4463.3,31.222]
[1755457491448,3.2078,4463.5,4463.4,0.8881]
[1755457491649,5.57313992,4463.5,4463.4,29.654]
[1755457492146,1.4906,4463.4,4462.6,32.274]
[1755457492347,1.1325,4463.2,4462.7,29.642]
[1755457492554,0.9758,4463.0,4462.7,29.642]
[1755457492752,1.1325,4462.8,4462.7,29.642]
[1755457493755,0.6177,4462.8,4462.7,30.013]
[1755457494052,0.5148,4463.2,4462.7,30.5301]
[1755457494248,0.23422429,4463.1,4462.7,29.642]
[1755457494448,0.23422429,4463.0,4462.8,1.09478]
[1755457494755,3.2078,4463.5,4463.0,0.8881]
[1755457494756,0.6177,4463.3,4463.0,0.8881]
[1755457495055,0.23417394,4463.2,4463.1,1.535]
[1755457495354,3.2078,4463.5,4463.4,0.44782]
[1755457495551,3.44192789,4463.5,4463.2,0.44784]
[1755457495852,3.2078,4463.5,4463.4,31.111]
[1755457496052,3.44192777,4463.5,4463.4,31.111]
[1755457496455,3.2078,4463.5,4463.4,31.111]
[1755457496953,4.57438327,4463.5,4463.4,0.371]
[1755457497153,4.93248327,4463.5,4463.4,29.549]
[1755457497347,0.6177,4463.4,4462.6,32.274]
[1755457497547,0.6177,4463.1,4462.7,29.547]
[1755457497845,0.23408327,4463.0,4462.9,1.535]
[1755457498050,3.2078,4463.5,4463.0,0.44786]
[1755457498252,0.6177,4463.3,4463.1,0.371]
[1755457498552,0.85171884,4463.2,4463.1,29.896]
[1755457498749,0.23401884,4463.2,4463.1,31.06]
[1755457500054,3.2078,4463.5,4463.3,0.8881]